Cogmind - Beta 12 @@@ ROGUE MODE // 2023.03.28 @ 19:19:40 Player: Exp. Geonium Core Result: Destroyed by P-70 Sage with Tesla Rifle Performance ------------- Evolutions (6) 3000 Regions Visited (20) 4000 Robots Destroyed (72) 360 Value Destroyed (2192) 2192 Prototype IDs (52) 1040 Alien Tech Used (3) 600 Bonus (-1732) -1732 TOTAL SCORE: 9460 Bonus ------- High Alert Combat Kills 18 Follower Combat Kills 188 Aligned with FarCom 300 Met Data Miner 300 Met Zhirov 300 Friendly Fire -2838 Cogmind --------- Core Integrity 0/1150 Matter 300/300 Energy 236/600 System Corruption 68% Temperature Cool (0) Movement Core (50) Location -4/Upper Caves Parts ------- > --- POWER (2) -------- (None) > --- PROPULSION (5) --- (None) > --- UTILITY (10) ----- Advanced Energy Well Improved Launcher Guidance Computer Advanced System Shield > --- WEAPON (3) ------- (None) > --- INVENTORY (5) ---- Quantum Capacitor Peak State ------------ > --- POWER ------------ Fusion Reactor > --- PROPULSION ------- Heavy Treads Advanced Myomer Leg Advanced Myomer Leg Advanced Myomer Leg > --- UTILITY ---------- Lightpack 2.0 Improved Sensor Array Particle Accelerator Improved Utility Shielding Medium Reflective Plating Hacking Suite Advanced System Shield > --- WEAPON ----------- Hardcell Cannon Improved Plasma Cutter Improved Plasma Cutter > --- INVENTORY -------- Light Nuclear Core Micro Nuclear Core Micro Antimatter Reactor Improved Cesium-ion Thruster Nuclear Pulse Thruster Advanced Heat Sink Advanced Cooling System Advanced Energy Well Advanced Energy Well Advanced Gravity Neutralizer Improved Terrain Scan Processor Improved Terrain Scan Processor Improved Terrain Scan Processor Improved Launcher Guidance Computer Transmission Jammer Experimental Core Shielding Utility Shielding Makeshift Ablative Armor Advanced Hacking Suite Authchip [Propulsion] Authchip [Device] Improved Component Analysis Suite Improved Dynamic Insulation System System Restoration Module System Restoration Module System Restoration Module Advanced System Restoration Module Trap Extractor Transdimensional Reconstructor Field Laser Railgun Heavy Rocket Launcher Heavy Mace Axe Makeshift Axe Great Axe [Rating: 137] Favorites ----------- Power Micro Nuclear Core Engine Light Ion Engine Power Core Micro Nuclear Core Reactor Micro Antimatter Reactor Propulsion Improved Cesium-ion Thruster Treads Improved Treads Leg Advanced Myomer Leg Hover Unit Antigrav System Flight Unit Improved Cesium-ion Thruster Utility Lightpack 2.0 Device Improved Sensor Array Storage Lightpack 2.0 Processor Improved Launcher Guidance Computer Hackware Advanced System Shield Protection Improved Light Armor Plating Weapon Field Laser Energy Gun Field Laser Energy Cannon Matter Neutralizer Ballistic Gun Light Assault Rifle Ballistic Cannon Hardcell Cannon Launcher Heavy Rocket Launcher Special Weapon Improved Plasma Cutter Impact Weapon Heavy Mace Slashing Weapon Great Axe Build | -11 -10 -10 -10 -9 -8 -7 -7 -7 -7 -6 -6 -6 -5 -5 -5 -5 -4 -4 -4 -4 ------- Run | Jun Mat Min Exi Min Mat Fac Low Low Dat Pro Fac Ext Fac Upp Upp Zhi Pro Fac Upp Upp Slots Evolved 12 | . . . . . 4 2 . . . . 2 . 2 . . . . 2 . . Power 1 | . . . . . . . . . . . . . . . . . . 1 . . Propulsion 3 | . . . . . 2 . . . . . 1 . . . . . . . . . Utility 8 | . . . . . 2 2 . . . . 1 . 2 . . . . 1 . . Weapon . | . . . . . . . . . . . . . . . . . . . . . Parts Attached 150 | 2 . . 1 1 10 13 4 . . 1 13 8 12 6 . 11 3 35 21 9 Power 12 | . . . . . 1 3 . . . . . 1 . . . 1 . 4 1 1 Engine 1 | . . . . . 1 . . . . . . . . . . . . . . . Core 8 | . . . . . . 3 . . . . . . . . . . . 3 1 1 Reactor 3 | . . . . . . . . . . . . 1 . . . 1 . 1 . . Propulsion 50 | 2 . . . . 5 5 1 . . . 4 3 3 . . 4 . 13 5 5 Treads 14 | 2 . . . . 5 . . . . . . . . . . 1 . 1 2 3 Leg 7 | . . . . . . . . . . . . . . . . 3 . 2 . 2 Wheel . | . . . . . . . . . . . . . . . . . . . . . Hover 3 | . . . . . . . . . . . . . . . . . . 3 . . Flight 26 | . . . . . . 5 1 . . . 4 3 3 . . . . 7 3 . Utility 57 | . . . 1 . 1 5 3 . . . 8 3 4 3 . 3 3 12 10 1 Device 26 | . . . . . . 2 3 . . . 1 2 . 2 . 1 . 6 8 1 Storage 4 | . . . 1 . 1 . . . . . . 1 . . . . . . 1 . Processor 6 | . . . . . . 2 . . . . 1 . 1 . . . 2 . . . Hackware 9 | . . . . . . . . . . . 2 . 3 . . . . 3 1 . Protection 12 | . . . . . . 1 . . . . 4 . . 1 . 2 1 3 . . Artifact . | . . . . . . . . . . . . . . . . . . . . . Weapon 31 | . . . . 1 3 . . . . 1 1 1 5 3 . 3 . 6 5 2 Energy Gun 4 | . . . . 1 2 . . . . . . . . . . . . 1 . . Energy Cannon 5 | . . . . . . . . . . . . . . . . . . . 4 1 Ballistic Gun 2 | . . . . . . . . . . . . . . . . 1 . . . 1 Ballistic Cannon 1 | . . . . . . . . . . . . . . . . 1 . . . . Launcher 7 | . . . . . . . . . . . 1 . 4 . . 1 . . 1 . Special Weapon 4 | . . . . . . . . . . . . . 1 3 . . . . . . Impact Weapon 1 | . . . . . 1 . . . . . . . . . . . . . . . Slashing Weapon 7 | . . . . . . . . . . 1 . 1 . . . . . 5 . . Piercing Weapon . | . . . . . . . . . . . . . . . . . . . . . Special Melee Weapon . | . . . . . . . . . . . . . . . . . . . . . Unidentified Prototypes 11 | . . . . . . 2 1 . . . . 2 . . . 5 . 1 . . Corrupted Parts 7 | . . . . . . . . . . . . . . . . . . . 2 5 System Corruption 48 | . . . . . . . . . . . . . . . . . . . 20 28 Parts Lost 71 | . . 1 . . . 1 . . . . . 3 7 . 3 . 4 32 3 17 Power 7 | . . . . . . . . . . . . . . . . . . 4 1 2 Propulsion 24 | . . . . . . 1 . . . . . 1 5 . 1 . 1 7 . 8 Utility 22 | . . . . . . . . . . . . 1 1 . 1 . 1 13 1 4 Weapon 18 | . . 1 . . . . . . . . . 1 1 . 1 . 2 8 1 3 Highest Loss Streak 13 | . . 1 . . . 1 . . . . . 2 3 . 3 . 2 13 2 9 To Critical Strikes 1 | . . . . . . . . . . . . . . . . . 1 . . . Average Slot Usage (%) 73 | . 85 74 71 85 79 77 80 78 78 78 80 75 77 74 73 79 67 58 71 56 Engine 2 | . 14 14 14 14 9 1 . . . . . . . . . . . . . . Core 2 | . . . . . . 5 7 7 7 7 6 4 . . . . . 3 1 4 Reactor 1 | . . . . . . . . . . . . 1 5 5 5 5 5 3 . . Treads 8 | . 28 28 28 28 34 8 . . . . . . . . . 1 . . 7 4 Leg 2 | . . . . . . . . . . . . . . . . 14 16 10 . 4 Flight 13 | . . . . . . 21 28 28 28 28 30 31 26 16 14 6 . 2 7 8 Device 4 | . . . . . . . 6 7 7 7 . 1 5 5 11 11 5 2 17 14 Storage 7 | . 14 14 14 14 17 9 7 7 7 7 6 6 5 5 5 5 5 4 5 5 Processor 4 | . . . . . . 7 7 7 7 7 10 2 . . . . 8 7 5 5 Hackware 7 | . . . . . . . . . . . 7 12 21 26 14 11 11 11 9 5 Protection 3 | . . . . . . 4 7 7 7 7 5 6 2 . 5 10 5 3 . . Energy Gun 3 | . 14 3 . 14 9 7 7 7 7 7 6 6 . . . . . . . . Energy Cannon 1 | . . . . . . . . . . . . . . . . . . . 11 2 Ballistic Gun 1 | . 14 14 14 14 3 . . . . . . . . . . . . . . . Special Weapon 1 | . . . . . . . . . . . . . 1 13 15 9 . . . . Impact Weapon 1 | . . . . . 4 7 7 7 7 6 . . . . . . . . . . Slashing Weapon 1 | . . . . . . . . . . 1 6 2 4 . . . . 4 . . Naked Turns . | . . . . . . . . . . . . . . . . . . . . . Heaviest Build 53 | 11 11 11 19 16 24 27 21 21 21 21 27 25 30 24 24 53 43 47 45 34 Greatest Support 115 | 40 40 40 40 40 92 92 22 21 21 22 27 37 29 34 34 90 90 115 58 58 Greatest Overweight (x) 8 | . . . . . . . . . . . 1 . 1 . . . . 2 1 8 Average Overweight (x) . | . . . . . . . . . . . . . . . . . . . . . Largest Inventory Capacity 40 | 8 8 8 10 10 40 40 40 40 40 40 40 40 40 40 40 40 40 40 5 5 Average Capacity 31 | 8 8 8 8 10 39 40 40 40 40 40 40 40 40 40 40 40 40 38 5 5 Most Carried 39 | 6 7 7 8 10 20 20 21 18 18 19 21 25 26 27 28 39 39 39 5 5 Average Carried 18 | 5 5 7 7 8 16 14 19 18 18 18 18 21 22 25 26 34 36 30 4 3 Final Capacity 40 | 8 8 8 10 10 40 40 40 40 40 40 40 40 40 40 40 40 40 5 5 5 Final Carried 39 | 4 7 7 8 10 20 20 18 18 18 19 21 24 26 25 28 36 39 5 5 2 Class Distribution -------------------- 31% | Hauler-Mutant 23% | Hauler-Sprinter 12% | Mutant 11% | Hacker-Sprinter 9% | Hauler-Scout 7% | Hacker-Mutant Dominant Class ---------------- Mutant | -10/Materials Mutant | -10/Mines Mutant | -10/Exiles Mutant | -9/Mines Hauler-Mutant | -8/Materials Hauler-Sprinter | -7/Factory Hauler-Sprinter | -7/Lower Caves Hauler-Sprinter | -7/Lower Caves Hauler-Sprinter | -7/Data Miner Hauler-Sprinter | -6/Proximity Caves Hauler-Scout | -6/Factory Hauler-Sprinter | -6/Extension Hacker-Sprinter | -5/Factory Hacker-Sprinter | -5/Upper Caves Hauler-Sprinter | -5/Upper Caves Hauler-Mutant | -5/Zhirov Hauler-Mutant | -4/Proximity Caves Hauler-Mutant | -4/Factory Hacker-Mutant | -4/Upper Caves Derelict-Mutant | -4/Upper Caves Resources | -11 -10 -10 -10 -9 -8 -7 -7 -7 -7 -6 -6 -6 -5 -5 -5 -5 -4 -4 -4 -4 ----------- Run | Jun Mat Min Exi Min Mat Fac Low Low Dat Pro Fac Ext Fac Upp Upp Zhi Pro Fac Upp Upp Matter Collected 1949 | 200 24 10 . . 125 90 75 15 . . 154 75 136 45 20 110 127 303 246 194 Remotely . | . . . . . . . . . . . . . . . . . . . . . Salvage Created 2576 | . 244 92 . . 296 84 45 . . 14 31 158 249 . . 130 139 477 262 355 Parts 137 | . 12 2 . . 10 . 1 . . . 2 16 23 . . 12 3 30 11 15 Haulers Intercepted 2 | . . . . . 1 . . . . . . . 1 . . . . . . . Recyclers Shooed 2 | . . . . . 2 . . . . . . . . . . . . . . . Parts Field Recycled . | . . . . . . . . . . . . . . . . . . . . . Retrieved Matter . | . . . . . . . . . . . . . . . . . . . . . Parts Self-Destructed 26 | . . . . . . . . . . 4 . . . . . 9 1 . 5 7 Prevented 11 | . . . . . . . . . . . . . . . . . . . 3 8 Kills | -11 -10 -10 -10 -9 -8 -7 -7 -7 -7 -6 -6 -6 -5 -5 -5 -5 -4 -4 -4 -4 ------- Run | Jun Mat Min Exi Min Mat Fac Low Low Dat Pro Fac Ext Fac Upp Upp Zhi Pro Fac Upp Upp Combat Hostiles Destroyed 48 | . 5 2 . . 2 1 . . . 2 . 1 4 . . . 5 11 7 8 Melee 14 | . . . . . 1 . . . . 1 . 1 . . . . . 11 . . Guns 9 | . 5 2 . . 1 . . . . . . . . . . . . . . 1 Cannons 6 | . . . . . . . . . . . . . . . . . . . 2 4 AOE 14 | . . . . . . . . . . . . . 4 . . . 5 . 4 1 Classes Destroyed 15 | . 3 . . . 7 . 1 . . 1 . . 1 . . . 1 1 . . Worker 5 | . . . . . 4 . . . . . . . 1 . . . . . . . Builder 2 | . . . . . 2 . . . . . . . . . . . . . . . Tunneler 1 | . . . . . 1 . . . . . . . . . . . . . . . Hauler 2 | . . . . . 1 . . . . . . . 1 . . . . . . . Recycler 2 | . 1 . . . . . . . . . . . . . . . . 1 . . Mechanic 1 | . . . . . 1 . . . . . . . . . . . . . . . Operator 3 | . . . . . . . . . . . . . 1 . . . . 2 . . Drone 2 | . . . . . . . . . . 2 . . . . . . . . . . Watcher 6 | . . . . . 1 1 . . . . 1 1 2 . . . . . . . Swarmer 26 | . 3 . . . . . . . . . . . 4 . . . . 9 5 5 Grunt 10 | . 2 2 . . 1 . . . . . . 1 . . . . 3 1 . . Researcher 1 | . . . . . . . 1 . . . . . . . . . . . . . Sentry 3 | . . . . . 1 1 . . . . . . . . . . . . . 1 Hunter 6 | . . . . . . . . . . . . . . . . . 2 . 2 2 Programmer 1 | . . . . . . . . . . . . . . . . . . 1 . . Best Kill Streak 7 | . 6 2 . . 7 1 . . . 2 1 2 4 . . . 3 3 4 3 Combat Bots Only 5 | . 5 2 . . 1 1 . . . 2 . 1 4 . . . 3 3 4 3 Max Kills in Single Turn 4 | . 1 1 . . 1 1 1 . . 1 1 1 4 . . . 2 1 2 1 Gunslinging . | . . . . . . . . . . . . . . . . . . . . . Exploded 4 | . . . . . . . . . . . . . 4 . . . 2 . 2 1 Melee 1 | . . . . . 1 . . . . 1 . 1 . . . . . 1 . . Uniques/NPCs Destroyed 1 | . . . . . . . . . . . . 1 . . . . . . . . A7 (-6/Extension) Combat | -11 -10 -10 -10 -9 -8 -7 -7 -7 -7 -6 -6 -6 -5 -5 -5 -5 -4 -4 -4 -4 -------- Run | Jun Mat Min Exi Min Mat Fac Low Low Dat Pro Fac Ext Fac Upp Upp Zhi Pro Fac Upp Upp Damage Taken 7449 | . 114 115 . . 238 524 . 15 . 57 150 272 554 . 285 . 618 2384 650 1473 Core 1672 | . 26 . . . 59 96 . . . . 6 27 142 . 84 . 135 593 118 386 Absorbed by Shields . | . . . . . . . . . . . . . . . . . . . . . Redirected to Shielding 175 | . . . . . . . . . . . . . . . . . 11 164 . . Core Remaining (%) 87 | 100 . . . 89 89 . . . . 86 . 96 . . . . 63 . . . Volleys Fired 119 | . 12 7 . . 8 6 . . . . 1 . 4 . . 6 16 9 20 30 Largest 2 | . 2 2 . . 2 1 . . . . 1 . 1 . . 2 1 1 2 1 Hottest 210 | . 60 60 . . 70 63 . . . . 39 . 39 . . 40 39 65 210 105 Shots Fired 149 | . 24 11 . . 16 6 . . . . 1 . 4 . . 12 16 9 22 28 Gun 67 | . 24 11 . . 16 6 . . . . . . . . . . . 7 . 3 Cannon 34 | . . . . . . . . . . . . . . . . . . . 17 17 Launcher 36 | . . . . . . . . . . . 1 . 4 . . . 16 2 5 8 Special 12 | . . . . . . . . . . . . . . . . 12 . . . . Kinetic 30 | . 12 7 . . 8 . . . . . . . . . . . . . . 3 Thermal 60 | . . . . . 8 6 . . . . . . . . . 12 . . 17 17 Explosive 23 | . . . . . . . . . . . 1 . 4 . . . 16 2 . . Electromagnetic 36 | . 12 4 . . . . . . . . . . . . . . . 7 5 8 Robot Hit Streak 15 | . 5 12 . . 15 1 . . . . . . . . . 10 11 4 5 8 Robot Miss Streak 3 | . 3 . . . 2 2 . . . . . . . . . 2 1 1 3 3 Penetration Max . | . . . . . . . . . . . . . . . . . . . . . Secondary Targets 1 | . . 1 . . . . . . . . . . . . . . . . . . Max Gunslinging Chain 1 | . . 1 . . . . . . . . . . . . . . . . . . Shots Hit Robots 175 | . 16 11 . . 23 5 1 . . 2 1 14 5 . . 10 11 47 12 17 Core Hits 93 | . 9 5 . . 6 1 . . . . 1 6 9 . . 2 16 17 9 12 Critical Kills . | . . . . . . . . . . . . . . . . . . . . . Critical Parts Destroyed 5 | . . . . . 2 2 . . . 1 . . . . . . . . . . Critical Strikes 11 | . 1 . . . 3 2 . . . 1 . . . . . . . 4 . . Burn 1 | . . . . . 1 . . . . . . . . . . . . . . . Corrupt 1 | . 1 . . . . . . . . . . . . . . . . . . . Smash 5 | . . . . . 2 2 . . . 1 . . . . . . . . . . Sever 4 | . . . . . . . . . . . . . . . . . . 4 . . Melee Attacks 241 | . . . . . 18 35 2 . . 2 54 14 37 . . . . 79 . . Impact 57 | . . . . . 18 35 2 . . 2 . . . . . . . . . . Slashing 184 | . . . . . . . . . . . 54 14 37 . . . . 79 . . Piercing . | . . . . . . . . . . . . . . . . . . . . . Sneak Attacks 31 | . . . . . 9 . 1 . . 1 1 12 3 . . . . 4 . . Combat Hostiles 1 | . . . . . . . . . . 1 . . . . . . . . . . Follow-up Attacks . | . . . . . . . . . . . . . . . . . . . . . Damage Inflicted 7916 | . 168 103 . . 1036 188 167 . . 94 66 830 628 . . 190 1283 1801 566 796 Guns 587 | . 168 103 . . 83 36 . . . . . . . . . . . 127 . 70 Cannons 718 | . . . . . . . . . . . . . . . . . . . 390 328 Explosions 2140 | . . . . . . . . . . . . . 239 . . . 1283 56 176 386 Melee 4259 | . . . . . 943 152 167 . . 94 66 830 389 . . . . 1618 . . Ramming 22 | . . . . . 10 . . . . . . . . . . . . . . 12 Kinetic 210 | . 54 51 . . 35 . . . . . . . . . . . . . . 70 Thermal 992 | . . . . . 48 36 . . . . . . . . . 190 . . 390 328 Explosive 1578 | . . . . . . . . . . . . . 239 . . . 1283 56 . . Electromagnetic 855 | . 114 52 . . . . . . . . . . . . . . . 127 176 386 Impact 1356 | . . . . . 943 152 167 . . 94 . . . . . . . . . . Slashing 2903 | . . . . . . . . . . . 66 830 389 . . . . 1618 . . Piercing . | . . . . . . . . . . . . . . . . . . . . . Highest Corruption 66 | . . . . . . 8 6 . . . . . . . . . . 22 36 66 Average Corruption 15 | . . . . . . 4 3 . . . . . . . . . . 12 19 44 Corruption Purged 17 | . . . . . . 2 6 . . . . . . . . . . 3 6 . Corruption Blocked 15 | . . . . . . . 15 . . . . . . . . . . . . . Effects 72 | . . . . . . 12 1 . . . . . . . . . . 22 21 16 Message Errors 20 | . . . . . . 4 . . . . . . . . . . . 6 4 6 Matter Fused 8 | . . . . . . . . . . . . . . . . . . 4 2 2 Heat Flow Errors 11 | . . . . . . 4 . . . . . . . . . . . 1 5 1 Energy Discharges 10 | . . . . . . 2 . . . . . . . . . . . 2 5 1 Parts Rejected 2 | . . . . . . . . . . . . . . . . . . 1 . 1 Parts Fused 2 | . . . . . . . 1 . . . . . . . . . . . . 1 Data Loss (minor) 9 | . . . . . . 2 . . . . . . . . . . . 2 4 1 Alerts 2 | . . . . . . . . . . . . . . . . . . 1 1 . Misdirections 6 | . . . . . . . . . . . . . . . . . . 5 . 1 Weapon Failures 2 | . . . . . . . . . . . . . . . . . . . . 2 Overload Shots . | . . . . . . . . . . . . . . . . . . . . . Overflow Damage 878 | . . . . . 412 130 17 . . 64 . 41 2 . . . . 182 3 27 Projectiles 27 | . . . . . . . . . . . . . . . . . . . . 27 Explosions 5 | . . . . . . . . . . . . . 2 . . . . . 3 . Melee 846 | . . . . . 412 130 17 . . 64 . 41 . . . . . 182 . . Knockbacks 2 | . . . . . 1 . 1 . . . . . . . . . . . . . Impact 2 | . . . . . 1 . 1 . . . . . . . . . . . . . Kinetic . | . . . . . . . . . . . . . . . . . . . . . Secondary . | . . . . . . . . . . . . . . . . . . . . . Self-Inflicted Damage 31 | . . . . . . . . . . . . . 26 . . . . . 5 . Shots 2 | . . . . . . . . . . . . . 1 . . . . . 1 . Rammed 2 | . . . . . 1 . . . . . . . . . . . . . . 1 Targets Rammed 7 | . . . . . 2 . . . . . . . . . . . . . . 5 Kicked 4 | . . . . . . . . . . . . . . . . . . . . 4 Crushed 1 | . . . . . 1 . . . . . . . . . . . . . . . Highest Temperature 309 | . 76 80 . . 67 309 . . . 18 25 204 . . . . 12 98 238 145 Average Temperature 47 | . 35 44 . . 25 127 . . . 10 6 54 . . . . 12 69 69 61 Received Heat Transfer 803 | . 36 66 . . 117 96 . . . 12 24 84 63 . 51 . 105 113 . 36 Effects 1 | . . . . . . 1 . . . . . . . . . . . . . . Energy Bleed 1 | . . . . . . 1 . . . . . . . . . . . . . . Siege Activations . | . . . . . . . . . . . . . . . . . . . . . Robots Corrupted 2 | . . . . . . . . . . . . . . . . . . . . 2 Combat Hostiles 2 | . . . . . . . . . . . . . . . . . . . . 2 Parts Fried 27 | . . . . . 16 3 1 . . 3 . . . . . . . . . 4 Impact Corruptions 20 | . . . . . 12 4 1 . . 3 . . . . . . . . . . Robots Melted 1 | . . . . . . . . . . . . . . . . . . . 1 . Combat Hostiles 1 | . . . . . . . . . . . . . . . . . . . 1 . Parts Melted . | . . . . . . . . . . . . . . . . . . . . . Heat Transferred 1406 | . . . . . 222 74 . . . . . . . . . 370 . . 407 333 Parts Sabotaged . | . . . . . . . . . . . . . . . . . . . . . Parts Stolen . | . . . . . . . . . . . . . . . . . . . . . Parts Stripped . | . . . . . . . . . . . . . . . . . . . . . Power Chain Reactions 1 | . . . . . . . . . . . . . . . . . . . 1 . Missiles Intercepted . | . . . . . . . . . . . . . . . . . . . . . Alert | -11 -10 -10 -10 -9 -8 -7 -7 -7 -7 -6 -6 -6 -5 -5 -5 -5 -4 -4 -4 -4 ------- Run | Jun Mat Min Exi Min Mat Fac Low Low Dat Pro Fac Ext Fac Upp Upp Zhi Pro Fac Upp Upp Peak Influence 577 | . 136 92 . . 94 509 . . . . 404 475 577 . . . . 310 . . Initial 232 | . . 52 . . . 23 . . . . 209 197 232 . . . . 63 . . Average 181 | . 94 81 . . 33 147 . . . . 248 352 418 . . . . 130 . . Maximum Alert Level 2 | . . . . . . 2 . . . . 2 2 2 . . . . 1 . . Low Security (%) 55 | 100 100 100 . 100 100 72 . . . . 7 1 . . . . . 76 . . Level 1 32 | . . . . . . 16 . . . . 90 56 40 . . . . 23 . . Level 2 11 | . . . . . . 11 . . . . 2 42 59 . . . . . . . Level 3 . | . . . . . . . . . . . . . . . . . . . . . Level 4 . | . . . . . . . . . . . . . . . . . . . . . Level 5 . | . . . . . . . . . . . . . . . . . . . . . High Security . | . . . . . . . . . . . . . . . . . . . . . Max Security . | . . . . . . . . . . . . . . . . . . . . . Squads Dispatched 18 | . 1 . . . . 4 . . . . 3 . 4 . . . . 6 . . Investigation 12 | . 1 . . . . 3 . . . . 3 . 3 . . . . 2 . . Extermination 2 | . . . . . . 1 . . . . . . . . . . . 1 . . Reinforcement 1 | . . . . . . . . . . . . . 1 . . . . . . . Assault . | . . . . . . . . . . . . . . . . . . . . . Garrison 3 | . . . . . . . . . . . . . . . . . . 3 . . Intercept . | . . . . . . . . . . . . . . . . . . . . . Searches Triggered 1 | . . . . . . . . . . . . . 1 . . . . . . . Data Miner Redirects 2 | . . . . . . . . . . . 1 . . . . . . 1 . . Construction Impeded . | . . . . . . . . . . . . . . . . . . . . . Haulers Reinforced . | . . . . . . . . . . . . . . . . . . . . . Active Scanning Responses . | . . . . . . . . . . . . . . . . . . . . . Cargo Convoy Interrupts . | . . . . . . . . . . . . . . . . . . . . . Stealth | -11 -10 -10 -10 -9 -8 -7 -7 -7 -7 -6 -6 -6 -5 -5 -5 -5 -4 -4 -4 -4 --------- Run | Jun Mat Min Exi Min Mat Fac Low Low Dat Pro Fac Ext Fac Upp Upp Zhi Pro Fac Upp Upp Distress Signals 5 | . . . . . . . . . . . 1 2 . . . . . 2 . . Communications Jammed 19 | . . . . . . . . . . . . . . . . . . 19 . . Distress Signals 18 | . . . . . . . . . . . . . . . . . . 18 . . Times Spotted 169 | . 5 2 . . 3 28 1 3 . 4 7 19 19 . 11 . 6 41 8 12 Peak Tracking Total 11 | . 3 2 . . 2 10 5 3 . 1 7 11 5 . 11 . 4 10 5 5 Tactical Retreats 34 | . . . . . . 10 3 . . 1 1 4 4 . 2 . . 8 1 . Traps | -11 -10 -10 -10 -9 -8 -7 -7 -7 -7 -6 -6 -6 -5 -5 -5 -5 -4 -4 -4 -4 ------- Run | Jun Mat Min Exi Min Mat Fac Low Low Dat Pro Fac Ext Fac Upp Upp Zhi Pro Fac Upp Upp Traps Triggered 11 | . 1 . . . . 1 . . . . 3 1 . . . . . 4 1 . Indirectly . | . . . . . . . . . . . . . . . . . . . . . Trap Hack Attempts . | . . . . . . . . . . . . . . . . . . . . . Triggered . | . . . . . . . . . . . . . . . . . . . . . Disarmed . | . . . . . . . . . . . . . . . . . . . . . Reprogrammed . | . . . . . . . . . . . . . . . . . . . . . Reused . | . . . . . . . . . . . . . . . . . . . . . Traps Extracted . | . . . . . . . . . . . . . . . . . . . . . Installed . | . . . . . . . . . . . . . . . . . . . . . Triggered 2 | . . . . . . . . . . . . . . . . . . 1 1 . Most Traps Carried 3 | . . . . 3 3 1 . . . . . . . . . . . . . . Machines | -11 -10 -10 -10 -9 -8 -7 -7 -7 -7 -6 -6 -6 -5 -5 -5 -5 -4 -4 -4 -4 ---------- Run | Jun Mat Min Exi Min Mat Fac Low Low Dat Pro Fac Ext Fac Upp Upp Zhi Pro Fac Upp Upp Machines Disabled 5 | . . . . . . 1 . . . . . . 3 . . . . 1 . . Max in Single Turn 1 | . . . . . . 1 . . . . . . 1 . . . . 1 . . Garrison Access 2 | . . . . . . 1 . . . . . . 1 . . . . . . . Machines Repaired . | . . . . . . . . . . . . . . . . . . . . . Machines Sabotaged . | . . . . . . . . . . . . . . . . . . . . . Overloaded Fab Kills . | . . . . . . . . . . . . . . . . . . . . . Hacking | -11 -10 -10 -10 -9 -8 -7 -7 -7 -7 -6 -6 -6 -5 -5 -5 -5 -4 -4 -4 -4 --------- Run | Jun Mat Min Exi Min Mat Fac Low Low Dat Pro Fac Ext Fac Upp Upp Zhi Pro Fac Upp Upp Machines Accessed 75 | . 4 . 1 . 5 13 1 . 4 . 17 4 17 . . 4 . 4 1 . Terminals 46 | . 4 . . . 4 8 . . . . 11 4 12 . . . . 3 . . Fabricators 7 | . . . . . . 2 . . . . 2 . 2 . . . . 1 . . Repair Stations 1 | . . . . . . . . . . . 1 . . . . . . . . . Recycling Units 4 | . . . . . 1 1 . . . . 1 . 1 . . . . . . . Scanalyzers 2 | . . . . . . 1 . . . . 1 . . . . . . . . . Garrison Access 4 | . . . . . . 1 . . . . 1 . 2 . . . . . . . Total Hacks 253 | . 18 . 1 . 17 31 1 . 32 . 47 17 59 . . 17 . 12 1 . Successful 127 | . 7 . 1 . 6 20 1 . 32 . 15 4 17 . . 17 . 6 1 . Failed 125 | . 10 . . . 11 11 . . . . 32 13 42 . . . . 6 . . Catastrophic 26 | . 4 . . . 2 3 . . . . 2 3 10 . . . . 2 . . Database Lockouts 1 | . 1 . . . . . . . . . . . . . . . . . . . Manual 131 | . 14 . 1 . 16 23 . . . . 18 16 33 . . . . 10 . . Terminals 165 | . 18 . . . 16 22 . . . . 33 17 49 . . . . 10 . . Fabricators 14 | . . . . . . 5 . . . . 5 . 2 . . . . 2 . . Repair Stations 2 | . . . . . . . . . . . 2 . . . . . . . . . Recycling Units 7 | . . . . . 1 1 . . . . 3 . 2 . . . . . . . Scanalyzers 4 | . . . . . . 2 . . . . 2 . . . . . . . . . Garrison Access 9 | . . . . . . 1 . . . . 2 . 6 . . . . . . . Terminal Hacks 85 | . 6 . 1 . 2 10 1 . 32 . 4 1 7 . . 17 . 3 1 . Record 16 | . . . . . . . . . 11 . . . . . . 5 . . . . Part Schematic 18 | . . . . . . 2 . . 11 . . 1 . . . 4 . . . . Robot Schematic 7 | . . . . . . . . . 7 . . . . . . . . . . . Robot Analysis 7 | . 3 . . . . . . . . . . . . . . 4 . . . . Prototype ID Bank 7 | . . . . . . . . . 3 . . . . . . 4 . . . . Open Door 2 | . . . . . . . 1 . . . . . . . . . . . 1 . Level Access Points 2 | . . . . . 1 1 . . . . . . . . . . . . . . Branch Access Points 6 | . 1 . . . . 2 . . . . 1 . 1 . . . . 1 . . Machine Index 1 | . . . . . . . . . . . 1 . . . . . . . . . Terminal Index 5 | . 1 . . . 1 1 . . . . . . 1 . . . . 1 . . Fabricator Index 3 | . . . . . . 1 . . . . . . 1 . . . . 1 . . Alert Level 1 | . 1 . . . . . . . . . . . . . . . . . . . Locate Traps 1 | . . . . . . . . . . . 1 . . . . . . . . . Recall Investigation 1 | . . . . . . . . . . . 1 . . . . . . . . . Recall Extermination 1 | . . . . . . 1 . . . . . . . . . . . . . . Registered Components 2 | . . . . . . 1 . . . . . . 1 . . . . . . . Registered Prototypes 1 | . . . . . . . . . . . . . 1 . . . . . . . Zone Layout 3 | . . . . . . 1 . . . . . . 2 . . . . . . . EX-Prototype ID Bank 1 | . . . 1 . . . . . . . . . . . . . . . . . Fabricator Hacks 5 | . . . . . . 1 . . . . 2 . . . . . . 2 . . Network Status 1 | . . . . . . 1 . . . . . . . . . . . . . . Load Schematic 2 | . . . . . . . . . . . 1 . . . . . . 1 . . Build 2 | . . . . . . . . . . . 1 . . . . . . 1 . . Repair Station Hacks 2 | . . . . . . . . . . . 2 . . . . . . . . . Scan Component 1 | . . . . . . . . . . . 1 . . . . . . . . . Repair 1 | . . . . . . . . . . . 1 . . . . . . . . . Recycling Unit Hacks 3 | . . . . . 1 1 . . . . . . 1 . . . . . . . Report Inventory 3 | . . . . . 1 1 . . . . . . 1 . . . . . . . Scanalyzer 1 | . . . . . . . . . . . 1 . . . . . . . . . Insert Component 1 | . . . . . . . . . . . 1 . . . . . . . . . Garrison Access Hacks 2 | . . . . . . 1 . . . . . . 1 . . . . . . . Seal Access 2 | . . . . . . 1 . . . . . . 1 . . . . . . . Unauthorized Hacks 29 | . 1 . . . 3 7 . . . . 6 3 8 . . . . 1 . . Terminals 23 | . 1 . . . 3 4 . . . . 6 3 5 . . . . 1 . . Track 2 | . . . . . . . . . . . 2 . . . . . . . . . Botnet 19 | . 1 . . . 2 4 . . . . 4 3 4 . . . . 1 . . Operators 2 | . . . . . 1 . . . . . . . 1 . . . . . . . Fabricators 4 | . . . . . . 2 . . . . . . 2 . . . . . . . Report 1 | . . . . . . 1 . . . . . . . . . . . . . . Fabnet 1 | . . . . . . 1 . . . . . . . . . . . . . . Recompile 2 | . . . . . . . . . . . . . 2 . . . . . . . Repair Stations . | . . . . . . . . . . . . . . . . . . . . . Recycling Units 1 | . . . . . . . . . . . . . 1 . . . . . . . Tunnel 1 | . . . . . . . . . . . . . 1 . . . . . . . Scanalyzers 1 | . . . . . . 1 . . . . . . . . . . . . . . Extract 1 | . . . . . . 1 . . . . . . . . . . . . . . Garrison Access . | . . . . . . . . . . . . . . . . . . . . . Data Cores Recovered 2 | . . . . . . . . . . . . . . . . . . 2 . . Used 1 | . . . . . . . . . . . . . . . . . . 1 . . Hacking Detections 55 | . 3 . . . 4 10 . . . . 17 4 14 . . . . 3 . . Full Trace Events 6 | . . . . . . 2 . . . . 2 . . . . . . 2 . . Feedback Events . | . . . . . . . . . . . . . . . . . . . . . Feedback Blocked . | . . . . . . . . . . . . . . . . . . . . . Robot Schematics Acquired 7 | . . . . . . . . . 7 . . . . . . . . . . . Robots Built . | . . . . . . . . . . . . . . . . . . . . . Authchips . | . . . . . . . . . . . . . . . . . . . . . Time . | . . . . . . . . . . . . . . . . . . . . . Total Robot Build Rating . | . . . . . . . . . . . . . . . . . . . . . Part Schematics Acquired 21 | . . . . . . 5 . . 11 . . 1 . . . 4 . . . . Parts Built 2 | . . . . . . . . . . . 1 . . . . . . 1 . . Authchips 1 | . . . . . . . . . . . . . . . . . . 1 . . Time 201 | . . . . . . . . . . . 67 . . . . . . 134 . . Total Part Build Rating 8 | . . . . . . . . . . . 4 . . . . . . 4 . . Parts Repaired 1 | . . . . . . . . . . . 1 . . . . . . . . . Time 33 | . . . . . . . . . . . 33 . . . . . . . . . Parts Recycled . | . . . . . . . . . . . . . . . . . . . . . Recycled Matter . | . . . . . . . . . . . . . . . . . . . . . Retrieved Matter . | . . . . . . . . . . . . . . . . . . . . . Retrieved Components . | . . . . . . . . . . . . . . . . . . . . . Parts Scanalyzed 1 | . . . . . . . . . . . 1 . . . . . . . . . Part Schematics Acquired . | . . . . . . . . . . . . . . . . . . . . . Parts Damaged . | . . . . . . . . . . . . . . . . . . . . . Bothacking | -11 -10 -10 -10 -9 -8 -7 -7 -7 -7 -6 -6 -6 -5 -5 -5 -5 -4 -4 -4 -4 ------------ Run | Jun Mat Min Exi Min Mat Fac Low Low Dat Pro Fac Ext Fac Upp Upp Zhi Pro Fac Upp Upp Used RIF Installer . | . . . . . . . . . . . . . . . . . . . . . Robots Hacked 2 | . . . . . . . . . . 1 . 1 . . . . . . . . Non-combat . | . . . . . . . . . . . . . . . . . . . . . Combat 2 | . . . . . . . . . . 1 . 1 . . . . . . . . Robot Hacks Applied . | . . . . . . . . . . . . . . . . . . . . . Relay Couplers Released . | . . . . . . . . . . . . . . . . . . . . . Fabnet Peak Effective % 3 | . . . . . . . . . . 3 3 3 1 1 1 1 . . . . Autooverrided 2 | . . . . . . . . . . 1 . 1 . . . . . . . . Robots Rewired . | . . . . . . . . . . . . . . . . . . . . . Allies Hacked . | . . . . . . . . . . . . . . . . . . . . . Hacks Repelled . | . . . . . . . . . . . . . . . . . . . . . Allies | -11 -10 -10 -10 -9 -8 -7 -7 -7 -7 -6 -6 -6 -5 -5 -5 -5 -4 -4 -4 -4 -------- Run | Jun Mat Min Exi Min Mat Fac Low Low Dat Pro Fac Ext Fac Upp Upp Zhi Pro Fac Upp Upp Total Allies 12 | . . . . . . . . . . 2 . 9 . . . . . . . 1 Largest Group 3 | . . . . . . . . . . 1 . 3 . . . . . . . 1 Highest-Rated Group 223 | . . . . . . . . . . 96 . 223 . . . . . . . 106 Highest-Rated Ally 159 | . . . . . . . . . . 96 . 159 . . . . . . . 106 Total Orders . | . . . . . . . . . . . . . . . . . . . . . Ally Attacks 45 | . . . . . . . . . . 8 . 37 . . . . . . . . Total Damage 1097 | . . . . . . . . . . 329 . 768 . . . . . . . . Kills 9 | . . . . . . . . . . 3 . 6 . . . . . . . . Allies Corrupted . | . . . . . . . . . . . . . . . . . . . . . Allies Melted . | . . . . . . . . . . . . . . . . . . . . . Intel | -11 -10 -10 -10 -9 -8 -7 -7 -7 -7 -6 -6 -6 -5 -5 -5 -5 -4 -4 -4 -4 ------- Run | Jun Mat Min Exi Min Mat Fac Low Low Dat Pro Fac Ext Fac Upp Upp Zhi Pro Fac Upp Upp Robot Analysis Total 7 | . 3 . . . . . . . . . . . . . . 4 . . . . Derelict Logs Recovered 7 | . . . . . . . 1 1 . 2 . . . . 1 . . . . 2 Drone Launches . | . . . . . . . . . . . . . . . . . . . . . Drone Recoveries . | . . . . . . . . . . . . . . . . . . . . . Exploration | -11 -10 -10 -10 -9 -8 -7 -7 -7 -7 -6 -6 -6 -5 -5 -5 -5 -4 -4 -4 -4 ------------- Run | Jun Mat Min Exi Min Mat Fac Low Low Dat Pro Fac Ext Fac Upp Upp Zhi Pro Fac Upp Upp Turns Passed 7204 | 3 170 139 392 152 597 816 193 59 22 205 796 232 546 368 82 275 313 972 617 255 Spaces Moved 8878 | 1 84 71 243 93 284 1294 431 226 85 537 1608 392 1226 391 248 241 226 685 299 213 Core 22 | . . . . . . . . . . . . . . . . . . 9 . 13 Treads 1125 | 1 84 71 243 93 284 117 . . . . . . . . . . . . 193 39 Legs 737 | . . . . . . . . . . . . . . . . 160 226 317 . 34 Wheels . | . . . . . . . . . . . . . . . . . . . . . Hover 19 | . . . . . . . . . . . . . . . . . . 19 . . Flight 6975 | . . . . . . 1177 431 226 85 537 1608 392 1226 391 248 81 . 340 106 127 Fastest Speed 14 | 160 160 160 160 160 160 27 26 26 26 23 23 14 20 30 30 34 120 27 27 27 Average Speed 52 | 160 160 160 160 160 160 39 26 26 26 25 23 22 24 30 30 91 120 82 141 86 Slowest Speed 450 | 160 160 160 160 160 160 160 27 26 26 26 87 26 91 30 34 120 120 150 225 450 Overloaded Moves 80 | . . . . . . . . . . 23 . 43 14 . . . . . . . Propulsion Burnouts . | . . . . . . . . . . . . . . . . . . . . . Robots Hopped 26 | . . . . . . 1 . . . . 10 4 6 . 4 . . 1 . . Cave-ins Triggered 1 | . . . . . . 1 . . . . . . . . . . . . . . Teleports 1 | . . . . . . . . . . . . . . . . . . 1 . . Exploration Rate (%) 43 | 2 22 15 60 33 29 48 64 51 74 81 44 64 43 53 46 61 40 12 38 37 Regions Visited 20 Branch Regions 14 Pre-discovered Areas 5 | . . . . . . . . . 1 . . . 1 . . 3 . . . . Known Exits Taken 10 | . 1 . . . 1 1 1 1 . 1 1 . 1 . . . 1 1 . . Unknown Exits Taken 10 | 1 . 1 1 1 . . . . 1 . . 1 . 1 1 1 . . 1 . Scrap Searched 17 | . . 1 . . . . 1 3 . 1 . . . 3 2 . 3 . 1 2 Spaces Dug 204 | . . . . . 3 30 1 . . . 73 . 85 . . . . 12 . . Terrain Destroyed 349 | . . . . . 3 30 1 . . . 73 . 85 . . . 106 28 15 8 Melee 130 | . . . . . 3 30 1 . . . 53 . 31 . . . . 12 . . Projectile 14 | . . . . . . . . . . . . . . . . . . . 6 8 AOE 205 | . . . . . . . . . . . 20 . 54 . . . 106 16 9 . Terrain Rammed . | . . . . . . . . . . . . . . . . . . . . . Walls Destroyed . | . . . . . . . . . . . . . . . . . . . . . Machines Disabled . | . . . . . . . . . . . . . . . . . . . . . Actions | -11 -10 -10 -10 -9 -8 -7 -7 -7 -7 -6 -6 -6 -5 -5 -5 -5 -4 -4 -4 -4 --------- Run | Jun Mat Min Exi Min Mat Fac Low Low Dat Pro Fac Ext Fac Upp Upp Zhi Pro Fac Upp Upp Total 10811 | 4 98 87 247 96 378 1540 507 225 84 598 1929 506 1403 641 248 269 251 971 467 262 Wait 1262 | . . 10 . . 37 147 63 . . 58 249 73 117 239 2 . 3 151 111 2 Move 8810 | . 83 70 242 92 283 1291 430 225 84 536 1588 383 1214 390 241 240 225 682 298 213 Hop 22 | . . . . . . 1 . . . . 9 4 5 . 2 . . 1 . . Pick Up 95 | . 3 . 1 3 15 14 3 . . . 10 3 8 4 3 7 3 10 6 2 Fast Attach 53 | . . . 1 . 3 5 2 . . 1 5 4 1 . . 7 1 8 11 4 Attach 74 | 2 . . . 1 2 7 2 . . . 6 2 10 5 . 2 . 23 7 5 Detach 22 | . . . . . . 1 1 . . 1 2 3 5 . . 4 1 2 2 . Swap 26 | . . . . . 5 1 1 . . . 2 2 1 1 . 3 2 5 3 . Drop 44 | 2 . . 3 . 5 14 3 . . . 3 . 1 2 . . . 1 9 1 Fire 119 | . 12 7 . . 8 6 . . . . 1 . 4 . . 6 16 9 20 30 Melee 241 | . . . . . 18 35 2 . . 2 54 14 37 . . . . 79 . . Ram 1 | . . . . . . . . . . . . . . . . . . . . 1 Kick 4 | . . . . . . . . . . . . . . . . . . . . 4 Crush 2 | . . . . . 2 . . . . . . . . . . . . . . . Escape Stasis 36 | . . . . . . 18 . . . . . 18 . . . . . . . . Rewire . | . . . . . . . . . . . . . . . . . . . . . Trap . | . . . . . . . . . . . . . . . . . . . . . Miscellaneous . | . . . . . . . . . . . . . . . . . . . . . Route ------- -11/Junkyard -10/Materials (discovered 3 exits: [*Mat] / *Min x2) -10/Mines -10/Exiles -9/Mines -8/Materials (discovered 3 exits: *Fac x3) -7/Factory (discovered 6 exits: *Fac x4 / *Low x2) -7/Lower Caves -7/Lower Caves -7/Data Miner -6/Proximity Caves -6/Factory (discovered 5 exits: *Fac / Low x2 / *Ext x2) -6/Extension (discovered 2 exits: *Fac / [*Cet]) -5/Factory (discovered 2 exits: *Upp x2) -5/Upper Caves -5/Upper Caves -5/Zhirov -4/Proximity Caves -4/Factory (discovered 3 exits: *Upp x2 / Arm) -4/Upper Caves -4/Upper Caves History --------- Turn | Location | Event 4 | -11/Junkyard | Discovered new exit (range 0) 4 | -11/Junkyard | Entered Materials 40 | -10/Materials | Identified exit to Mines 120 | -10/Materials | Discovered new exit (range 14) 159 | -10/Materials | Central database locked down 174 | -10/Materials | Entered Mines 305 | -10/Mines | Deemed a non-threat by the Exiles lab entrance 305 | -10/Mines | Discovered new exit (range 5) 309 | -10/Mines | Build established: Mutant 313 | -10/Mines | Entered Exiles 353 | -10/Exiles | Met 8R-AWN 381 | -10/Exiles | Met EX-HEX 424 | -10/Exiles | Met EX-BIN 445 | -10/Exiles | Aligned with FarCom system 446 | -10/Exiles | Given EX-Vault access code 483 | -10/Exiles | Opened EX-Vault 495 | -10/Exiles | Found Lightpack 2.0 531 | -10/Exiles | Warned to stay clear of 0b10 Research branches 581 | -10/Exiles | Met EX-DEC 692 | -10/Exiles | Discovered new exit (range 10) 705 | -10/Exiles | Left Exiles lab with Lightpack 2.0 705 | -10/Exiles | Entered Mines 793 | -9/Mines | Found a hidden stash of uninstalled traps 847 | -9/Mines | Discovered new exit (range 6) 857 | -9/Mines | Entered Materials 857 | -8/Materials | Evolved 4 slots: Propulsion x2, Utility x2 1169 | -8/Materials | Build established: Hauler-Mutant 1243 | -8/Materials | Identified exit to Factory 1454 | -8/Materials | Entered Factory 1454 | -7/Factory | Evolved 2 slots: Utility x2 1495 | -7/Factory | Discovered new exit (range 20) 1780 | -7/Factory | Identified exit to Lower Caves 1980 | -7/Factory | Build established: Hauler-Sprinter 1993 | -7/Factory | Discovered new exit (range 16) 2108 | -7/Factory | Crushed by falling debris 2139 | -7/Factory | Identified exit to Factory 2270 | -7/Factory | Entered Lower Caves 2359 | -7/Lower Caves | Found Alien Artifact 2359 | -7/Lower Caves | Identified Core Expander 2359 | -7/Lower Caves | Installed Core Expander, added new Weapon slot 2430 | -7/Lower Caves | Identified exit to Lower Caves 2463 | -7/Lower Caves | Entered another Lower Caves area 2493 | -7/Lower Caves | Identified exit to Data Miner 2516 | -7/Lower Caves | Attracted the attention of an 0b10 checkpoint 2522 | -7/Lower Caves | Entered Data Miner 2522 | -7/Data Miner | Discovered new exit (range 6) 2526 | -7/Data Miner | Met Data Miner 2534 | -7/Data Miner | Learned location of Section 7 (-3) 2534 | -7/Data Miner | Acquired the access code to Warlord's prototype stash 2538 | -7/Data Miner | Received God Mode back door access code from Data Miner 2544 | -7/Data Miner | Entered Proximity Caves 2547 | -6/Proximity Caves | Spotter reported a threat 2553 | -6/Proximity Caves | Learned Factory stockpile data 2626 | -6/Proximity Caves | Escorted by Enhanced Grunt 2663 | -6/Proximity Caves | Spotted B-75 Beast 2739 | -6/Proximity Caves | Discovered exit to Factory (range 14) 2749 | -6/Proximity Caves | Entered Factory 2749 | -6/Factory | Evolved 2 slots: Propulsion x1, Utility x1 2750 | -6/Factory | Identified exit to Extension 3019 | -6/Factory | Identified exit to Lower Caves 3059 | -6/Factory | Discovered new exit (range 16) 3148 | -6/Factory | Build established: Hauler-Scout 3242 | -6/Factory | Repaired Broken Cld. Cesium-ion Thruster 3395 | -6/Factory | Incoming investigation squad redirected 3525 | -6/Factory | Fabricated Cld. VTOL Module? 3545 | -6/Factory | Entered Extension 3559 | -6/Extension | Rescued a captive Derelict 3560 | -6/Extension | Rescued a captive Derelict 3580 | -6/Extension | Rescued a captive Derelict 3582 | -6/Extension | Rescued a captive Derelict 3587 | -6/Extension | Rescued a captive Derelict 3594 | -6/Extension | Rescued a captive Derelict 3594 | -6/Extension | Rescued a captive Derelict 3597 | -6/Extension | Rescued a captive Derelict 3637 | -6/Extension | Spotted B-75 Beast 3639 | -6/Extension | Spotted B-75 Beast 3653 | -6/Extension | Rescued a captive Derelict 3657 | -6/Extension | Rescued A7 3657 | -6/Extension | Rescued a captive Derelict 3659 | -6/Extension | Rescued a captive Derelict 3660 | -6/Extension | Rescued a captive Derelict 3725 | -6/Extension | Destroyed A7 3728 | -6/Extension | Extracted ID and sensor layout for unrecognized location from A7's data core 3758 | -6/Extension | Build established: Hauler-Sprinter 3775 | -6/Extension | Discovered new exit (range 10) 3775 | -6/Extension | Discovered new exit (range 6) 3777 | -6/Extension | Entered Factory 3777 | -5/Factory | Evolved 2 slots: Utility x2 3951 | -5/Factory | Discovered new exit (range 3) 3956 | -5/Factory | Identified exit to Upper Caves 4077 | -5/Factory | Search patrols dispatched 4122 | -5/Factory | Lost 3 parts (2n1u) 4240 | -5/Factory | Spotted B-75 Beast 4249 | -5/Factory | Build established: Hacker-Sprinter 4323 | -5/Factory | Entered Upper Caves 4671 | -5/Upper Caves | Discovered new exit (range 5) 4691 | -5/Upper Caves | Entered another Upper Caves area 4767 | -5/Upper Caves | Learned Factory stockpile data 4771 | -5/Upper Caves | Discovered new exit (range 5) 4773 | -5/Upper Caves | Entered Zhirov 4773 | -5/Zhirov | Discovered new exit (range 3) 4780 | -5/Zhirov | Met Zhirov 4789 | -5/Zhirov | Found Alien Artifact 4789 | -5/Zhirov | Identified Integrated Dissipator 4789 | -5/Zhirov | Installed Integrated Dissipator, increased core heat dissipation (+20) 4794 | -5/Zhirov | Lost 3 parts (1n1u1w) 4795 | -5/Zhirov | Found Alien Artifact 4900 | -5/Zhirov | Learned location of Quarantine (-3) 4900 | -5/Zhirov | Learned location of Testing (-2) 4900 | -5/Zhirov | Learned location of Command (-1) 4919 | -5/Zhirov | Zhirov requested help retrieving the SGEMP Prototype 5048 | -5/Zhirov | Entered Proximity Caves 5313 | -4/Proximity Caves | Discovered new exit (range 10) 5335 | -4/Proximity Caves | Build established: Hauler-Mutant 5335 | -4/Proximity Caves | Identified exit to Factory 5361 | -4/Proximity Caves | Entered Factory 5361 | -4/Factory | Evolved 2 slots: Power x1, Utility x1 5361 | -4/Factory | Discovered new exit (range 10) 5372 | -4/Factory | Identified exit to Upper Caves 5503 | -4/Factory | Found Quantum Capacitor 5547 | -4/Factory | Identified exit to Armory 5730 | -4/Factory | Lost 3 parts (2p1w) 5957 | -4/Factory | Lost 3 parts (3u) 5959 | -4/Factory | System corruption reached 10% 5999 | -4/Factory | Incoming investigation squad redirected 6030 | -4/Factory | Identified Transdimensional Reconstructor 6030 | -4/Factory | Warped through subspace 6082 | -4/Factory | Garrison activated, responded to threat 6093 | -4/Factory | Core integrity fell below 50% 6098 | -4/Factory | Lost 13 parts (1p6n4u2w) 6243 | -4/Factory | Fabricated Cld. VTOL Module? 6325 | -4/Factory | Lost 11 parts (1p6u4w) 6333 | -4/Factory | Entered Upper Caves 6464 | -4/Upper Caves | Encountered a Warlord checkpoint 6633 | -4/Upper Caves | Build established: Hacker-Mutant 6867 | -4/Upper Caves | System corruption reached 30% 6947 | -4/Upper Caves | Discovered new exit (range 11) 6950 | -4/Upper Caves | Entered another Upper Caves area 6956 | -4/Upper Caves | Learned Research emergency access door positions 6975 | -4/Upper Caves | Learned Research stockpile data 7018 | -4/Upper Caves | Lost 4 parts (2n2u) 7077 | -4/Upper Caves | Attracted the attention of an 0b10 checkpoint 7145 | -4/Upper Caves | Lost 4 parts (1p2n1w) 7185 | -4/Upper Caves | Core integrity fell below 20% 7205 | -4/Upper Caves | Destroyed by P-70 Sage with Tesla Rifle Last Messages --------------- 07174_ Integrated Corrupted Med. Treads (+2). 07174_ Complication: Energy sink damages Corrupted Med. Treads (-54). 07176_ Cld. VTOL Module destroyed. 07180_ S-27 Virus destroyed. 07184_ Myomer Leg destroyed. 07185_ Lgt. Nuclear Core fries itself beyond repair. 07185_ Matter Neutralizer destroyed. 07186_ Med. Treads destroyed. 07187_ Cloaking Device destroyed. 07189_ V1W%IF L